fUST/lending_fUST_20240225
["ID","MTS","AMOUNT","RATE_DAILY","PERIOD"]
[315062165,1708799440968,-1210.48,0.00019726,2]
[315062167,1708799440979,-500.0,0.00019726,2]
[315062169,1708799440988,-500.0,0.00019726,2]
[315062171,1708799440997,-500.0,0.00019726,2]
[315062173,1708799441007,-500.0,0.00019726,2]
[315062175,1708799441017,-500.0,0.00019726,2]
[315062177,1708799441026,-500.0,0.00019726,2]
[315062179,1708799441035,-697.77,0.00019726,2]
[315062181,1708799441044,-501.9076383,0.00019726,2]
[315062183,1708799441054,-860.7,0.00019726,2]
[315062185,1708799441062,-500.0,0.00019726,2]
[315062187,1708799441071,-675.98,0.00019726,2]
[315062189,1708799441080,-157.56559089,0.00019726,2]
[315062191,1708799441089,-4161.48,0.00019726,2]
[315062192,1708799441098,-6539.76,0.00019726,2]
[315062195,1708799441108,-500.0,0.00019726,2]
[315062196,1708799441117,-1509.8,0.00019726,2]
[315062198,1708799441126,-500.0,0.00019726,2]
[315062200,1708799441135,-893.24,0.00019726,2]
[315062202,1708799441144,-500.0,0.00019726,2]
[315062204,1708799441153,-500.0,0.00019726,2]
[315062206,1708799441162,-500.0,0.00019726,2]
[315062208,1708799441171,-500.0,0.00019726,2]
[315062210,1708799441180,-787.5,0.00019726,2]
[315062212,1708799441189,-1017.44,0.00019726,2]
[315062214,1708799441199,-500.0,0.00019726,2]
[315062216,1708799441209,-1456.37,0.00019726,2]
[315062218,1708799441218,-500.0,0.00019726,2]
[315062220,1708799441227,-500.0,0.00019726,2]
[315062222,1708799441237,-500.0,0.00019726,2]
[315062224,1708799441246,-1355.47,0.00019726,2]
[315062226,1708799441255,-287.05748937,0.00019726,2]
[315062228,1708799441264,-500.0,0.00019726,2]
[315062230,1708799441273,-8422.29,0.00019726,2]
[315062232,1708799441282,-1929.38,0.00019726,2]
[315062234,1708799441291,-518.07,0.00019726,2]
[315062236,1708799441300,-1152.61,0.00019726,2]
[315062238,1708799441310,-500.0,0.00019726,2]
[315062240,1708799441319,-500.0,0.00019726,2]
[315062242,1708799441328,-500.0,0.00019726,2]
[315062244,1708799441337,-1435.41,0.00019726,2]
[315062246,1708799441346,-1721.75,0.00019726,2]
[315062248,1708799441355,-500.0,0.00019726,2]
[315062250,1708799441366,-500.0,0.00019726,2]
[315062252,1708799441375,-500.0,0.00019726,2]
[315062254,1708799441384,-500.0,0.00019726,2]
[315062256,1708799441393,-914.53,0.00019726,2]
[315062258,1708799441402,-897.64,0.00019726,2]
[315062260,1708799441411,-500.0,0.00019726,2]
[315062263,1708799441421,-1902.23,0.00019726,2]
[315062264,1708799441430,-500.0,0.00019726,2]
[315062267,1708799441439,-671.26,0.00019726,2]
[315062268,1708799441449,-501.19258491,0.00019726,2]
[315062270,1708799441458,-500.0,0.00019726,2]
[315062272,1708799441467,-386.71146429,0.00019726,2]
[315062274,1708799441476,-6282.18,0.00019726,2]
[315062276,1708799441485,-500.0,0.00019726,2]
[315062278,1708799441495,-500.0,0.00019726,2]
[315062280,1708799441504,-961.16,0.00019726,2]
[315062283,1708799441514,-559.02,0.00019726,2]
[315062284,1708799441523,-2256.35,0.00019726,2]
[315062287,1708799441533,-661.72,0.00019742,2]
[315062289,1708799441542,-1000.0,0.000198,2]
[315062290,1708799441551,-484.37701643,0.00019873,2]
[315062292,1708799441560,-465.73176155,0.000199,2]
[315062294,1708799441569,-2069.94649482,0.000199,2]
[315062296,1708799441578,-9924.57,0.00019975,2]
[315062298,1708799441588,-661.72,0.00019999,2]
[315062300,1708799441597,-661.72,0.00019999,2]
[315062302,1708799441606,-500.0,0.0002,2]
[315062304,1708799441617,-500.0,0.0002,2]
[315062306,1708799441626,-750.0,0.0002,2]
[315062308,1708799441634,-329.83424643,0.0002,2]
[315062310,1708799441643,-500.0,0.0002,2]
[315062312,1708799441653,-500.0,0.0002,2]
[315062314,1708799441662,-500.0,0.0002,2]
[315062316,1708799441671,-596.53827503,0.0002,2]
[315062318,1708799441680,-650.08,0.0002,2]
[315062320,1708799441688,-500.0,0.0002,2]
[315062322,1708799441697,-500.0,0.0002,2]
[315062324,1708799441706,-642.3,0.0002,2]
[315062326,1708799441715,-500.0,0.0002,2]
[315062327,1708799441724,-371.3298318,0.0002,2]
[315062328,1708799441733,-500.0,0.0002,2]
[315062329,1708799441742,-515.17,0.0002,2]
[315062330,1708799441750,-630.45135169,0.0002,2]
[315062331,1708799441760,-500.0,0.0002,2]
[315062332,1708799441770,-500.0,0.0002,2]
[315062333,1708799441780,-500.0,0.0002,2]
[315062334,1708799441790,-500.0,0.0002,2]
[315062335,1708799441799,-377.92,0.0002,2]
[315062336,1708799441809,-1210.48,0.0002,2]
[315062337,1708799441819,-500.0,0.0002,2]
[315062338,1708799441828,-218.42275406,0.0002,2]
[315062339,1708799441838,-500.0,0.0002,2]
[315062340,1708799441846,-500.0,0.0002,2]
[315062341,1708799441856,-697.77,0.0002,2]
[315062342,1708799441867,-987.0,0.0002,4]
[315062343,1708799441877,-860.7,0.0002,2]
[315062344,1708799441890,-500.0,0.0002,2]
[315062345,1708799441899,-675.98,0.0002,2]
[315062346,1708799441909,-541.0,0.0002,4]
[315062347,1708799441919,-4161.48,0.0002,2]
[315062348,1708799441929,-6539.76,0.0002,2]
[315062349,1708799441938,-500.0,0.0002,2]
[315062351,1708799441946,-1509.8,0.0002,2]
[315062352,1708799441956,-792.64185061,0.0002,4]
[315062354,1708799441966,-500.0,0.0002,2]
[315062356,1708799441976,-893.24,0.0002,2]
[315062358,1708799441985,-500.0,0.0002,2]
[315062360,1708799441994,-500.0,0.0002,2]
[315062362,1708799442003,-500.0,0.0002,2]
[315062364,1708799442012,-787.5,0.0002,2]
[315062366,1708799442022,-1017.44,0.0002,2]
[315062368,1708799442031,-1456.37,0.0002,2]
[315062370,1708799442040,-428.24448266,0.0002,2]
[315062383,1708799442145,-1355.47,0.0002,2]
[315062385,1708799442154,-500.0,0.0002,2]
[315062387,1708799442163,-8422.29,0.0002,2]
[315062389,1708799442172,-1929.38,0.0002,2]
[315062391,1708799442181,-518.07,0.0002,2]
[315062393,1708799442191,-1152.61,0.0002,2]
[315062395,1708799442199,-500.0,0.0002,2]
[315062397,1708799442208,-500.0,0.0002,2]
[315062399,1708799442217,-1435.41,0.0002,2]
[315062401,1708799442225,-1721.75,0.0002,2]
[315062403,1708799442234,-500.0,0.0002,2]
[315062405,1708799442243,-500.0,0.0002,2]
[315062407,1708799442251,-500.0,0.0002,2]
[315062409,1708799442260,-914.53,0.0002,2]
[315062411,1708799442268,-897.64,0.0002,2]
[315062413,1708799442277,-500.0,0.0002,2]
[315062415,1708799442285,-1902.23,0.0002,2]
[315062417,1708799442294,-500.0,0.0002,2]
[315062419,1708799442304,-671.26,0.0002,2]
[315062421,1708799442312,-500.0,0.0002,2]
[315062423,1708799442321,-6282.18,0.0002,2]
[315062425,1708799442330,-500.0,0.0002,2]
[315062427,1708799442338,-500.0,0.0002,2]
[315062429,1708799442347,-961.16,0.0002,2]
[315062431,1708799442356,-559.02,0.0002,2]
[315062434,1708799442366,-2256.35,0.0002,2]
[315062436,1708799442375,-484.37701643,0.00020048,2]
[315062438,1708799442383,-661.72,0.0002007,2]
[315062439,1708799442393,-661.72,0.0002007,2]
[315062440,1708799442402,-166.666666,0.00020076,2]
[315062442,1708799442410,-68764.1010498,0.00020095,2]
[315062443,1708799442419,-19899.8849389,0.00020109,2]
[315062444,1708799442428,-661.72,0.00020129,2]
[315062445,1708799442437,-661.72,0.00020129,2]
[315062446,1708799442445,-661.72,0.00020129,2]
[315062447,1708799442454,-661.72,0.00020129,2]
[315062448,1708799442463,-661.87359977,0.00020129,2]
[315062449,1708799442472,-50000.0,0.00020148,2]
[315062450,1708799442480,-50000.0,0.00020202,2]
[315062451,1708799442489,-9924.57,0.00020249,2]
[315062452,1708799442498,-50000.0,0.00020255,2]
[315062453,1708799442507,-500.0,0.00020273,2]
[315062454,1708799442516,-500.0,0.00020273,2]
[315062455,1708799442525,-380.60345438,0.00020273,2]
[315062456,1708799442534,-500.0,0.00020273,2]
[315062457,1708799442543,-650.08,0.00020273,2]
[315062458,1708799442551,-506.51,0.00020273,2]
[315062459,1708799442560,-642.3,0.00020273,2]
[315062460,1708799442569,-500.0,0.00020273,2]
[315062461,1708799442578,-500.0,0.00020273,2]
[315062462,1708799442586,-515.17,0.00020273,2]
[315062463,1708799442595,-500.0,0.00020273,2]
[315062464,1708799442604,-500.0,0.00020273,2]
[315062465,1708799442615,-500.0,0.00020273,2]
[315062466,1708799442625,-500.0,0.00020273,2]
[315062467,1708799442633,-1210.48,0.00020273,2]
[315062468,1708799442642,-500.0,0.00020273,2]
[315062469,1708799442652,-500.0,0.00020273,2]
[315062470,1708799442660,-500.0,0.00020273,2]
[315062471,1708799442669,-697.77,0.00020273,2]
[315062472,1708799442678,-860.7,0.00020273,2]
[315062473,1708799442687,-500.0,0.00020273,2]
[315062474,1708799442695,-675.98,0.00020273,2]
[315062475,1708799442704,-4161.48,0.00020273,2]
[315062476,1708799442713,-6539.76,0.00020273,2]
[315062477,1708799442722,-503.95786474,0.00020273,2]
[315062478,1708799442731,-1509.8,0.00020273,2]
[315062479,1708799442740,-502.75770034,0.00020273,2]
[315062480,1708799442749,-893.24,0.00020273,2]
[315062481,1708799442757,-500.0,0.00020273,2]
[315062482,1708799442767,-500.0,0.00020273,2]
[315062483,1708799442776,-334.1222498,0.00020273,2]
[315062484,1708799442785,-787.5,0.00020273,2]
[315062485,1708799442794,-1017.44,0.00020273,2]
[315062486,1708799442803,-1456.37,0.00020273,2]
[315062487,1708799442811,-1355.47,0.00020273,2]
[315062488,1708799442821,-500.0,0.00020273,2]
[315062489,1708799442830,-8422.29,0.00020273,2]
[315062490,1708799442839,-1929.38,0.00020273,2]
[315062491,1708799442847,-518.07,0.00020273,2]
[315062492,1708799442857,-1152.61,0.00020273,2]
[315062493,1708799442866,-500.0,0.00020273,2]
[315062494,1708799442875,-307.42899316,0.00020273,2]
[315062495,1708799442888,-1435.41,0.00020273,2]
[315062496,1708799442897,-1721.75,0.00020273,2]
[315062497,1708799442906,-500.0,0.00020273,2]
[315062498,1708799442916,-500.0,0.00020273,2]
[315062499,1708799442926,-914.53,0.00020273,2]
[315062500,1708799442935,-897.64,0.00020273,2]
[315062501,1708799442944,-500.0,0.00020273,2]
[315062503,1708799442954,-1902.23,0.00020273,2]
[315062505,1708799442964,-671.26,0.00020273,2]
[315062507,1708799442973,-500.0,0.00020273,2]
[315062509,1708799442983,-6282.18,0.00020273,2]
[315062511,1708799442992,-500.0,0.00020273,2]
[315062513,1708799443001,-961.16,0.00020273,2]
[315062515,1708799443009,-559.02,0.00020273,2]
[315062516,1708799443018,-2256.35,0.00020273,2]
[315062517,1708799443027,-50000.0,0.00020308,2]
[315062518,1708799443035,-50000.0,0.00020362,2]
[315062519,1708799443044,-50000.0,0.00020415,2]
[315062520,1708799443053,-61360.38040798,0.00020415,2]
[315062521,1708799443062,-5000.0,0.00020415,2]
[315062522,1708799443072,-75683.58230553,0.00020415,2]
[315062523,1708799443081,-50000.0,0.00020425,2]
[315062524,1708799443089,-210.65235539,0.00020426,2]
[315062525,1708799443099,-500.0,0.00020426,2]
[315062526,1708799443108,-500.0,0.00020426,2]
[315062527,1708799443118,-500.0,0.00020426,2]
[315062528,1708799443127,-500.0,0.00020426,2]
[315062529,1708799443137,-500.0,0.00020426,2]
[315062530,1708799443145,-291.99124279,0.00020426,2]
[315062531,1708799443155,-500.0,0.00020426,2]
[315062532,1708799443163,-500.0,0.00020426,2]
[315062533,1708799443172,-500.0,0.00020426,2]
[315062534,1708799443181,-500.0,0.00020426,2]
[315062535,1708799443190,-500.0,0.00020426,2]
[315062536,1708799443198,-500.0,0.00020426,2]
[315062537,1708799443208,-315.27547034,0.00020426,2]
[315062538,1708799443216,-500.0,0.00020426,2]
[315062539,1708799443225,-500.0,0.00020426,2]
[315062540,1708799443235,-500.0,0.00020426,2]
[315062541,1708799443244,-65660.88974938,0.00020427,2]
[315062542,1708799443253,-153.900109,0.00020477,2]
[315062543,1708799443262,-386.1870592,0.00020477,2]
[315062544,1708799443271,-9924.57,0.00020523,2]
[315062545,1708799443280,-166.666666,0.00020524,2]
[315062546,1708799443288,-500.0,0.00020547,2]
[315062547,1708799443297,-500.0,0.00020547,2]
[315062548,1708799443306,-500.0,0.00020547,2]
[315062549,1708799443314,-650.08,0.00020547,2]
[315062550,1708799443323,-642.3,0.00020547,2]
[315062551,1708799443332,-500.0,0.00020547,2]
[315062552,1708799443341,-515.17,0.00020547,2]
[315062553,1708799443350,-500.0,0.00020547,2]
[315062554,1708799443359,-500.0,0.00020547,2]
[315062555,1708799443367,-500.0,0.00020547,2]
[315062556,1708799443376,-1210.48,0.00020547,2]
[315062557,1708799443385,-500.0,0.00020547,2]
[315062558,1708799443393,-153.94,0.00020547,2]
[315062559,1708799443402,-500.0,0.00020547,2]
[315062560,1708799443411,-697.77,0.00020547,2]
[315062561,1708799443420,-860.7,0.00020547,2]
[315062562,1708799443429,-500.0,0.00020547,2]
[315062563,1708799443438,-675.98,0.00020547,2]
[315062564,1708799443447,-4161.48,0.00020547,2]
[315062565,1708799443457,-6539.76,0.00020547,2]
[315062566,1708799443466,-1509.8,0.00020547,2]
[315062567,1708799443476,-893.24,0.00020547,2]
[315062568,1708799443485,-446.942332,0.00020547,2]
[315062569,1708799443494,-500.0,0.00020547,2]
[315062570,1708799443503,-446.942332,0.00020547,2]
[315062571,1708799443513,-220.596274,0.00020547,2]
[315062572,1708799443522,-500.0,0.00020547,2]
[315062573,1708799443533,-787.5,0.00020547,2]
[315062574,1708799443542,-1017.44,0.00020547,2]
[315062575,1708799443552,-151.0,0.00020547,2]
[315062576,1708799443561,-1456.37,0.00020547,2]
[315062577,1708799443571,-1355.47,0.00020547,2]
[315062578,1708799443580,-151.0,0.00020547,2]
[315062579,1708799443589,-8422.29,0.00020547,2]
[315062580,1708799443597,-1929.38,0.00020547,2]
[315062581,1708799443607,-518.07,0.00020547,2]
[315062582,1708799443618,-1152.61,0.00020547,2]
[315062583,1708799443627,-1435.41,0.00020547,2]
[315062584,1708799443636,-1721.75,0.00020547,2]
[315062585,1708799443645,-320.57,0.00020547,2]
[315062586,1708799443654,-500.0,0.00020547,2]
[315062587,1708799443664,-914.53,0.00020547,2]
[315062588,1708799443673,-897.64,0.00020547,2]
[315062589,1708799443683,-500.0,0.00020547,2]
[315062590,1708799443692,-1902.23,0.00020547,2]
[315062591,1708799443702,-671.26,0.00020547,2]
[315062592,1708799443712,-6282.18,0.00020547,2]
[315062593,1708799443721,-500.0,0.00020547,2]
[315062594,1708799443731,-961.16,0.00020547,2]
[315062595,1708799443741,-559.02,0.00020547,2]
[315062596,1708799443750,-2256.35,0.00020547,2]
[315062597,1708799443760,-401.0588884,0.00020548,2]
[315062598,1708799443770,-200.0,0.000206,2]
[315062599,1708799443779,-300.0,0.00020703,2]
[315062600,1708799443788,-2069.94649477,0.00020718,2]
[315062601,1708799443798,-5000.0,0.00020751,2]
[315062602,1708799443807,-6340.29293213,0.00020775,2]
[315062603,1708799443816,-7511.26330694,0.00020782,2]
[315062604,1708799443826,-9924.57,0.00020797,2]
[315062605,1708799443835,-500.0,0.00020821,2]
[315062606,1708799443845,-500.0,0.00020821,2]
[315062607,1708799443854,-500.0,0.00020821,2]
[315062608,1708799443866,-650.08,0.00020821,2]
[315062609,1708799443877,-642.3,0.00020821,2]
[315062610,1708799443888,-500.0,0.00020821,2]
[315062611,1708799443901,-515.17,0.00020821,2]
[315062612,1708799443911,-500.0,0.00020821,2]
[315062613,1708799443922,-500.0,0.00020821,2]
[315062614,1708799443932,-1210.48,0.00020821,2]
[315062615,1708799443941,-500.0,0.00020821,2]
[315062616,1708799443951,-697.77,0.00020821,2]
[315062617,1708799443962,-860.7,0.00020821,2]
[315062618,1708799443972,-294.39801914,0.00020821,2]
[315062619,1708799443982,-675.98,0.00020821,2]
[315062620,1708799443991,-4161.48,0.00020821,2]
[315062621,1708799444000,-151.0,0.00020821,2]
[315062622,1708799444010,-151.0,0.00020821,2]
[315062623,1708799444019,-6539.76,0.00020821,2]
[315062624,1708799444028,-1509.8,0.00020821,2]
[315062625,1708799444038,-893.24,0.00020821,2]
[315062626,1708799444047,-500.0,0.00020821,2]
[315062627,1708799444057,-500.0,0.00020821,2]
[315062628,1708799444067,-787.5,0.00020821,2]
[315062629,1708799444076,-1017.44,0.00020821,2]
[315062630,1708799444085,-1456.37,0.00020821,2]
[315062631,1708799444094,-1355.47,0.00020821,2]
[315062632,1708799444103,-8422.29,0.00020821,2]
[315062633,1708799444114,-1929.38,0.00020821,2]
[315062634,1708799444123,-518.07,0.00020821,2]
[315062635,1708799444132,-1152.61,0.00020821,2]
[315062636,1708799444142,-1435.41,0.00020821,2]
[315062637,1708799444151,-1721.75,0.00020821,2]
[315062638,1708799444160,-534.18404538,0.00020821,2]
[315062639,1708799444169,-914.53,0.00020821,2]
[315062640,1708799444178,-897.64,0.00020821,2]
[315062641,1708799444188,-500.0,0.00020821,2]
[315062642,1708799444197,-1902.23,0.00020821,2]
[315062643,1708799444206,-671.26,0.00020821,2]
[315062644,1708799444215,-6282.18,0.00020821,2]
[315062645,1708799444224,-500.0,0.00020821,2]
[315062646,1708799444233,-961.16,0.00020821,2]
[315062647,1708799444242,-559.02,0.00020821,2]
[315062648,1708799444252,-2256.35,0.00020821,2]
[315062649,1708799444262,-153.0,0.00020822,2]
[315062650,1708799444272,-5000.0,0.00020837,2]
[315062651,1708799444281,-5000.0,0.00020854,2]
[315062652,1708799444290,-5000.0,0.00020859,2]
[315062653,1708799444300,-5000.0,0.00020864,2]
[315062654,1708799444309,-2000.0,0.000209,3]
[315062655,1708799444319,-300.0,0.0002093,2]
[315062656,1708799444328,-5000.0,0.00020932,2]
[315062657,1708799444337,-5000.0,0.00020935,2]
[315062658,1708799444347,-151.0,0.00020973,2]
[315062659,1708799444356,-4221.193254,0.00020973,2]
[315062660,1708799444366,-4221.193254,0.00020973,2]
[315062661,1708799444375,-430.057369,0.00020973,2]
[315062662,1708799444385,-430.057369,0.00020973,2]
[315062663,1708799444394,-166.666666,0.00020973,2]
[315062664,1708799444403,-5000.0,0.0002101,2]
[315062665,1708799444412,-151.0,0.0002101,2]
[315062666,1708799444421,-5000.0,0.00021012,2]
[315062667,1708799444431,-4379.044449,0.00021044,2]
[315062668,1708799444440,-4379.044449,0.00021044,2]
[315062669,1708799444449,-50000.0,0.00021045,2]
[315062670,1708799444459,-9924.57,0.00021071,2]
[315062671,1708799444468,-5000.0,0.00021088,2]
[315062672,1708799444477,-5000.0,0.00021088,2]
[315062673,1708799444487,-469.14421574,0.00021088,2]
[315062674,1708799444496,-2905.97016468,0.00021088,2]
[315062675,1708799444506,-500.0,0.00021095,2]
[315062676,1708799444515,-500.0,0.00021095,2]
[315062677,1708799444524,-169.07876287,0.00021095,2]
[315062678,1708799444533,-650.08,0.00021095,2]
[315062679,1708799444542,-642.3,0.00021095,2]
[315062680,1708799444551,-500.0,0.00021095,2]
[315062681,1708799444560,-515.17,0.00021095,2]
[315062682,1708799444569,-620.50613827,0.00021095,2]
[315062683,1708799444579,-500.0,0.00021095,2]
[315062684,1708799444588,-1210.48,0.00021095,2]
[315062685,1708799444597,-500.0,0.00021095,2]
[315062686,1708799444606,-697.77,0.00021095,2]
[315062687,1708799444617,-860.7,0.00021095,2]
[315062688,1708799444627,-675.98,0.00021095,2]
[315062689,1708799444636,-4161.48,0.00021095,2]
[315062690,1708799444645,-6539.76,0.00021095,2]
[315062691,1708799444654,-1509.8,0.00021095,2]
[315062692,1708799444762,-893.24,0.00021095,2]
[315062693,1708799444811,-446.942332,0.00021095,2]
[315062694,1708799444821,-500.0,0.00021095,2]
[315062695,1708799444830,-446.942332,0.00021095,2]
[315062696,1708799444840,-488.36,0.00021095,2]
[315062697,1708799444849,-787.5,0.00021095,2]
[315062698,1708799444860,-1017.44,0.00021095,2]
[315062699,1708799444869,-151.0,0.00021095,2]
[315062700,1708799444880,-1456.37,0.00021095,2]
[315062701,1708799444891,-1355.47,0.00021095,2]
[315062702,1708799444901,-151.0,0.00021095,2]
[315062703,1708799444911,-8422.29,0.00021095,2]
[315062704,1708799444920,-1929.38,0.00021095,2]
[315062705,1708799444931,-518.07,0.00021095,2]
[315062706,1708799444940,-1152.61,0.00021095,2]
[315062707,1708799444950,-1435.41,0.00021095,2]
[315062708,1708799444960,-1721.75,0.00021095,2]
[315062709,1708799444969,-914.53,0.00021095,2]
[315062710,1708799444979,-897.64,0.00021095,2]
[315062711,1708799444989,-500.0,0.00021095,2]
[315062712,1708799444999,-1902.23,0.00021095,2]
[315062713,1708799445008,-671.26,0.00021095,2]
[315062714,1708799445017,-6282.18,0.00021095,2]
[315062715,1708799445027,-500.0,0.00021095,2]
[315062716,1708799445036,-961.16,0.00021095,2]
[315062717,1708799445046,-559.02,0.00021095,2]
[315062718,1708799445056,-1541.36865182,0.00021095,2]
[315062719,1708799445156,-714.98134818,0.00021095,2]
[315062720,1708799445165,-300.0,0.00021157,2]
[315062721,1708799445174,-266.73685485,0.00021183,2]
[315062722,1708799445186,-1372.61627023,0.00021183,2]
[315062723,1708799445195,-509.98510299,0.00021183,2]
[315062724,1708799445205,-484.93259156,0.00021183,2]
[315062732,1708799446052,-500.0,0.00019416,2]
[315062733,1708799446061,-666.82955223,0.00019416,2]
[315062734,1708799446073,-334.40854753,0.00019416,2]
[315062735,1708799446083,-500.0,0.00019416,2]
[315062736,1708799446092,-166.54012718,0.00019416,2]
[315062737,1708799446593,-333.45987282,0.00019416,2]
[315062738,1708799446603,-1001.23809976,0.00019416,2]
[315062739,1708799446614,-500.0,0.00019416,2]
[315062740,1708799446626,-1001.23809976,0.00019416,2]
[315062741,1708799446635,-514.31145913,0.00019416,2]
[315062742,1708799446645,-386.24913834,0.00019416,2]
[315062743,1708799446654,-500.0,0.00019416,2]
[315062744,1708799446664,-1001.23809976,0.00019416,2]
[315062745,1708799446673,-500.0,0.00019416,2]
[315062746,1708799446682,-1001.23809976,0.00019416,2]
[315062747,1708799446692,-500.0,0.00019416,2]
[315062748,1708799446701,-1001.23809976,0.00019416,2]
[315062749,1708799446711,-500.0,0.00019416,2]
[315062750,1708799446720,-1001.23809976,0.00019416,2]
[315062751,1708799446730,-500.0,0.00019416,2]
[315062752,1708799446739,-1001.23809976,0.00019416,2]
[315062753,1708799446749,-500.0,0.00019416,2]
[315062754,1708799446758,-589.0371443,0.00019416,2]
[315062755,1708799446932,-500.0,0.00019178,2]
[315062756,1708799446942,-166.666666,0.00019178,2]
[315062757,1708799447060,-412.20095546,0.00019416,2]
[315062758,1708799447071,-500.0,0.00019416,2]
[315062759,1708799447081,-1001.23809976,0.00019416,2]
[315062760,1708799447090,-500.0,0.00019416,2]
[315062761,1708799447100,-1001.23809976,0.00019416,2]
[315062762,1708799447110,-1001.23809976,0.00019416,2]
[315062763,1708799447120,-500.0,0.00019416,2]
[315062764,1708799447130,-1001.23809976,0.00019416,2]
[315062765,1708799447139,-500.0,0.00019416,2]
[315062766,1708799447149,-1001.23809976,0.00019416,2]
[315062767,1708799447161,-500.0,0.00019416,2]
[315062768,1708799447170,-1001.23809976,0.00019416,2]
[315062769,1708799447180,-500.0,0.00019416,2]
[315062770,1708799447189,-1001.23809976,0.00019416,2]
[315062771,1708799447198,-500.0,0.00019416,2]
[315062772,1708799447206,-1001.23809976,0.00019416,2]
[315062773,1708799447215,-500.0,0.00019416,2]
[315062774,1708799447225,-1001.23809976,0.00019416,2]
[315062775,1708799447233,-500.0,0.00019416,2]
[315062776,1708799447242,-1001.23809976,0.00019416,2]
[315062777,1708799447251,-500.0,0.00019416,2]
[315062778,1708799447260,-476.58790094,0.00019416,2]
[315062779,1708799447273,-524.65019882,0.00019416,2]
[315062780,1708799447286,-500.0,0.00019416,2]
[315062781,1708799447296,-500.0,0.00019416,2]
[315062782,1708799447304,-1001.23809976,0.00019416,2]
[315062783,1708799447313,-500.0,0.00019416,2]
[315062784,1708799447322,-1001.23809976,0.00019416,2]
[315062785,1708799447331,-230.83176166,0.00019416,2]
[315062786,1708799447347,-269.16823834,0.00019416,2]
[315062787,1708799447356,-1001.23809976,0.00019416,2]
[315062788,1708799447367,-1001.23809976,0.00019416,2]
[315062789,1708799447377,-500.0,0.00019416,2]
[315062790,1708799447386,-500.0,0.00019416,2]
[315062791,1708799447396,-1001.23809976,0.00019416,2]
[315062792,1708799447405,-500.0,0.00019416,2]
[315062793,1708799447415,-500.0,0.00019416,2]
[315062794,1708799447425,-1001.23809976,0.00019416,2]
[315062795,1708799447435,-500.0,0.00019416,2]
[315062796,1708799447445,-1001.23809976,0.00019416,2]
[315062797,1708799447455,-500.0,0.00019416,2]
[315062798,1708799447465,-1001.23809976,0.00019416,2]
[315062799,1708799447475,-500.0,0.00019416,2]
[315062800,1708799447484,-1001.23809976,0.00019416,2]
[315062801,1708799447494,-500.0,0.00019416,2]
[315062802,1708799447503,-1001.23809976,0.00019416,2]
[315062803,1708799447513,-500.0,0.00019416,2]
[315062804,1708799447522,-500.0,0.00019416,2]
[315062805,1708799447532,-1001.23809976,0.00019416,2]
[315062806,1708799447542,-500.0,0.00019416,2]
[315062807,1708799447551,-1001.23809976,0.00019416,2]
[315062808,1708799447561,-500.0,0.00019416,2]
[315062809,1708799447572,-1001.23809976,0.00019416,2]